Cogmind - Beta 13 @@@ ROGUE MODE // 2024.07.24 @ 11:35:59 Player: swetpototo Result: Destroyed by YI-UF0 with YI-UF0's Doublenader Performance ------------- Evolutions (0) 0 Regions Visited (2) 400 Robots Destroyed (10) 50 Value Destroyed (269) 269 Prototype IDs (0) 0 Alien Tech Used (0) 0 Bonus (0) 0 TOTAL SCORE: 719 Bonus ------- None Cogmind --------- Core Integrity 0/250 Matter 285/300 Energy 100/100 System Corruption 1% Temperature Cool (0) Movement Core (150) Ox2 Location -10/Mines Parts ------- > --- POWER (1) -------- (None) > --- PROPULSION (2) --- (None) > --- UTILITY (2) ------ Small Storage Unit > --- WEAPON (2) ------- Heavy Flail > --- INVENTORY (8) ---- Ion Engine Heat Sink High-capacity Battery (250) Seismic Detector ECM Suite Tractor Beam Grenade Launcher Peak State ------------ > --- POWER ------------ Light Nuclear Core > --- PROPULSION ------- Light Treads Light Treads > --- UTILITY ---------- Small Storage Unit Improved Terrain Scanner > --- WEAPON ----------- Medium Laser Assault Rifle > --- INVENTORY -------- Ion Engine Heat Sink High-capacity Battery Seismic Detector Targeting Computer ECM Suite Backup Plating I Tractor Beam [Rating: 11] Favorites ----------- Power Light Ion Engine Engine Light Ion Engine Power Core Light Nuclear Core Propulsion Light Treads Treads Light Treads Utility Small Storage Unit Device Improved Terrain Scanner Storage Small Storage Unit Protection Backup Plating I Weapon Medium Laser Energy Gun Medium Laser Ballistic Gun Assault Rifle Impact Weapon Heavy Flail Build | -11 -10 -10 ------- Run | Yrd Mat Min Slots Evolved . | . . . Power . | . . . Propulsion . | . . . Utility . | . . . Weapon . | . . . Parts Attached 19 | 7 10 2 Power 3 | 1 2 . Engine 2 | 1 1 . Core 1 | . 1 . Reactor . | . . . Propulsion 2 | 2 . . Treads 2 | 2 . . Leg . | . . . Wheel . | . . . Hover . | . . . Flight . | . . . Utility 4 | 1 2 1 Device 2 | . 2 . Storage 1 | 1 . . Processor . | . . . Hackware . | . . . Protection 1 | . . 1 Artifact . | . . . Weapon 10 | 3 6 1 Energy Gun 5 | 2 3 . Energy Cannon . | . . . Ballistic Gun 4 | 1 3 . Ballistic Cannon . | . . . Launcher . | . . . Special Weapon . | . . . Impact Weapon 1 | . . 1 Slashing Weapon . | . . . Piercing Weapon . | . . . Special Melee Weapon . | . . . Unidentified Prototypes . | . . . Parts Lost 9 | . 2 7 Power 2 | . 1 1 Propulsion 2 | . . 2 Utility 2 | . . 2 Weapon 3 | . 1 2 Highest Loss Streak 7 | . 2 7 To Critical Strikes . | . . . Average Slot Usage (%) 95 | . 96 94 Engine 7 | . 11 . Core 6 | . 2 13 Treads 27 | . 28 25 Device 9 | . 6 13 Storage 14 | . 14 14 Protection 3 | . 5 . Energy Gun 15 | . 17 13 Ballistic Gun 10 | . 9 13 Naked Turns . | . . . Heaviest Build 15 | 12 15 15 Greatest Support 40 | 40 40 40 Greatest Overweight (x) 2 | 2 . 2 Average Overweight (x) . | . . . Largest Inventory Capacity 8 | 8 8 8 Average Capacity 7 | 7 8 8 Most Carried 8 | 3 8 8 Average Carried 6 | 1 6 7 Final Capacity 8 | 8 8 8 Final Carried 8 | 2 8 7 Class Distribution -------------------- 100% | Mutant Dominant Class ---------------- Mutant | -10/Materials Mutant | -10/Mines Resources | -11 -10 -10 ----------- Run | Yrd Mat Min Matter Collected 504 | 270 234 . Remotely . | . . . Salvage Created 410 | 64 346 . Parts 20 | 2 18 . Haulers Intercepted . | . . . Recyclers Shooed 2 | . 1 1 Parts Field Recycled . | . . . Retrieved Matter . | . . . Parts Self-Destructed . | . . . Prevented . | . . . Kills | -11 -10 -10 ------- Run | Yrd Mat Min Combat Hostiles Destroyed 7 | . 7 . Guns 7 | . 7 . Classes Destroyed 4 | 1 3 . Builder 1 | . 1 . Tunneler 1 | . 1 . Recycler 1 | 1 . . Grunt 7 | . 7 . Best Kill Streak 3 | 1 3 . Combat Bots Only 3 | . 3 . Max Kills in Single Turn 1 | 1 1 . Gunslinging . | . . . Exploded . | . . . Melee . | . . . Uniques/NPCs Destroyed . | . . . Combat | -11 -10 -10 -------- Run | Yrd Mat Min Hostile Shots Fired 91 | . 77 14 Missed 18 | . 13 5 Damage Taken 1227 | . 741 486 Core 251 | . 101 150 Absorbed by Shields . | . . . Core Remaining (%) 100 | 100 . . Volleys Fired 42 | 3 37 2 Largest 2 | 2 2 2 Hottest 90 | 90 90 70 Shots Fired 80 | 6 69 5 Gun 80 | 6 69 5 Cannon . | . . . Launcher . | . . . Special . | . . . Kinetic 50 | . 48 2 Thermal 30 | 6 21 3 Explosive . | . . . Electromagnetic . | . . . Robot Hit Streak 14 | 4 14 6 Robot Miss Streak 3 | 1 3 . Penetration Max . | . . . Secondary Targets 1 | . 1 . Max Gunslinging Chain 1 | . 1 . Shots Hit Robots 60 | 5 50 5 Core Hits 20 | 2 18 . Critical Kills . | . . . Critical Parts Destroyed . | . . . Critical Strikes 2 | . 2 . Burn 2 | . 2 . Melee Attacks . | . . . Impact . | . . . Slashing . | . . . Piercing . | . . . Sneak Attacks . | . . . Combat Hostiles . | . . . Follow-up Attacks . | . . . Damage Inflicted 770 | 59 652 59 Guns 770 | 59 652 59 Cannons . | . . . Explosions . | . . . Melee . | . . . Ramming . | . . . Kinetic 464 | . 442 22 Thermal 306 | 59 210 37 Explosive . | . . . Electromagnetic . | . . . Impact . | . . . Slashing . | . . . Piercing . | . . . Highest Corruption 1 | . 1 1 Average Corruption 1 | . 1 1 Corruption Purged . | . . . Corruption Blocked . | . . . Effects 8 | . 3 5 Message Errors 1 | . . 1 Matter Fused 1 | . . 1 Heat Flow Errors 2 | . 1 1 Energy Discharges 1 | . 1 . Data Loss (minor) 1 | . . 1 Misfires 2 | . 1 1 Overload Shots . | . . . Overflow Damage . | . . . Projectiles . | . . . Explosions . | . . . Melee . | . . . Knockbacks . | . . . Impact . | . . . Kinetic . | . . . Secondary . | . . . Self-Inflicted Damage . | . . . Shots . | . . . Rammed . | . . . Targets Rammed . | . . . Kicked . | . . . Crushed . | . . . Highest Temperature 243 | 90 243 211 Average Temperature 79 | 48 85 72 Received Heat Transfer 414 | . 414 . Siege Activations . | . . . Robots Corrupted . | . . . Combat Hostiles . | . . . Parts Fried . | . . . Impact Corruptions . | . . . Robots Melted . | . . . Combat Hostiles . | . . . Parts Melted . | . . . Heat Transferred 1049 | 161 777 111 Parts Sabotaged . | . . . Parts Stolen . | . . . Parts Stripped . | . . . Power Chain Reactions . | . . . Alert | -11 -10 -10 ------- Run | Yrd Mat Min Peak Influence 175 | 5 175 5 Initial 5 | . 3 5 Average 27 | 1 49 4 Maximum Alert Level . | . . . Low Security (%) 100 | 100 100 100 Level 1 . | . . . Level 2 . | . . . Level 3 . | . . . Level 4 . | . . . Level 5 . | . . . High Security . | . . . Max Security . | . . . Squads Dispatched 2 | . 1 1 Investigation 2 | . 1 1 Extermination . | . . . Reinforcement . | . . . Assault . | . . . Garrison . | . . . Intercept . | . . . Searches Triggered . | . . . Construction Impeded . | . . . Haulers Reinforced . | . . . Active Scanning Responses . | . . . Cargo Convoy Interrupts . | . . . Stealth | -11 -10 -10 --------- Run | Yrd Mat Min Distress Signals 2 | . 2 . Communications Jammed . | . . . Distress Signals . | . . . Times Spotted 14 | . 9 5 Peak Tracking Total 4 | . 4 2 Tactical Retreats 1 | . 1 . Traps | -11 -10 -10 ------- Run | Yrd Mat Min Traps Triggered . | . . . Indirectly . | . . . Trap Hack Attempts . | . . . Triggered . | . . . Disarmed . | . . . Reprogrammed . | . . . Reused . | . . . Traps Extracted . | . . . Installed . | . . . Triggered . | . . . Machines | -11 -10 -10 ---------- Run | Yrd Mat Min Machines Disabled . | . . . Max in Single Turn . | . . . Machines Repaired . | . . . Machines Dismantled . | . . . Machines Sabotaged . | . . . Overloaded Fab Kills . | . . . Hacking | -11 -10 -10 --------- Run | Yrd Mat Min Machines Accessed 3 | . 3 . Terminals 2 | . 2 . Fabricators . | . . . Repair Stations 1 | . 1 . Recycling Units . | . . . Scanalyzers . | . . . Garrison Access . | . . . Total Hacks 7 | . 7 . Successful 1 | . 1 . Failed 6 | . 6 . Catastrophic 3 | . 3 . Database Lockouts . | . . . Manual 1 | . 1 . Terminals 4 | . 4 . Fabricators . | . . . Repair Stations 3 | . 3 . Recycling Units . | . . . Scanalyzers . | . . . Garrison Access . | . . . Terminal Hacks . | . . . Fabricator Hacks . | . . . Repair Station Hacks 1 | . 1 . Refit 1 | . 1 . Recycling Unit Hacks . | . . . Scanalyzer . | . . . Garrison Access Hacks . | . . . Unauthorized Hacks . | . . . Terminals . | . . . Fabricators . | . . . Repair Stations . | . . . Recycling Units . | . . . Scanalyzers . | . . . Garrison Access . | . . . Data Cores Recovered . | . . . Used . | . . . Hacking Detections 3 | . 3 . Full Trace Events 2 | . 2 . Feedback Events 1 | . 1 . Corruption 1 | . 1 . Feedback Blocked . | . . . Robot Schematics Acquired . | . . . Robots Built . | . . . Authchips . | . . . Time . | . . . Total Robot Build Rating . | . . . Part Schematics Acquired . | . . . Parts Built . | . . . Authchips . | . . . Time . | . . . Total Part Build Rating . | . . . Parts Repaired . | . . . Time . | . . . Parts Recycled . | . . . Recycled Matter . | . . . Retrieved Matter . | . . . Retrieved Components . | . . . Parts Scanalyzed . | . . . Part Schematics Acquired . | . . . Parts Damaged . | . . . Bothacking | -11 -10 -10 ------------ Run | Yrd Mat Min Used RIF Installer . | . . . Robots Hacked . | . . . Non-combat . | . . . Combat . | . . . Robot Hacks Applied . | . . . Relay Couplers Released . | . . . Fabnet Peak Effective % . | . . . Robots Rewired . | . . . Allies Hacked . | . . . Hacks Repelled . | . . . Allies | -11 -10 -10 -------- Run | Yrd Mat Min Total Allies . | . . . Largest Group . | . . . Highest-Rated Group . | . . . Highest-Rated Ally . | . . . Total Orders . | . . . Ally Attacks . | . . . Total Damage . | . . . Kills . | . . . Allies Corrupted . | . . . Allies Melted . | . . . Intel | -11 -10 -10 ------- Run | Yrd Mat Min Robot Analysis Total . | . . . Derelict Logs Recovered . | . . . Drone Launches . | . . . Drone Recoveries . | . . . Exploration | -11 -10 -10 ------------- Run | Yrd Mat Min Turns Passed 859 | 121 451 287 Spaces Moved 433 | 64 194 175 Core 14 | 4 . 10 Treads 419 | 60 194 165 Legs . | . . . Wheels . | . . . Hover . | . . . Flight . | . . . Fastest Speed 50 | 50 160 100 Average Speed 158 | 157 160 158 Slowest Speed 160 | 160 160 160 Overloaded Moves . | . . . Propulsion Burnouts . | . . . Robots Hopped . | . . . Cave-ins Triggered . | . . . Exploration Rate (%) 25 | 4 34 38 Regions Visited 2 Branch Regions 1 Pre-discovered Areas . | . . . Known Exits Taken . | . . . Unknown Exits Taken 2 | 1 1 . Scrap Searched . | . . . Spaces Dug . | . . . Terrain Destroyed . | . . . Melee . | . . . Projectile . | . . . AOE . | . . . Terrain Rammed . | . . . Walls Destroyed . | . . . Machines Disabled . | . . . Actions | -11 -10 -10 --------- Run | Yrd Mat Min Total 526 | 76 268 182 Wait 14 | . 13 1 Move 431 | 63 193 175 Hop . | . . . Pick Up 10 | 2 7 1 Fast Attach 12 | 6 5 1 Attach 6 | 1 4 1 Detach 4 | 1 3 . Swap 1 | . 1 . Drop 6 | . 5 1 Fire 42 | 3 37 2 Melee . | . . . Ram . | . . . Kick . | . . . Crush . | . . . Escape Stasis . | . . . Rewire . | . . . Trap . | . . . Miscellaneous . | . . . Route ------- -11/Scrapyard -10/Materials -10/Mines History --------- Turn | Location | Event 13 | -11/Scrapyard | Discovered new exit (range 16) 122 | -11/Scrapyard | Entered Materials 302 | -10/Materials | Build established: Mutant 547 | -10/Materials | Discovered new exit (range 13) 573 | -10/Materials | Entered Mines 703 | -10/Mines | YI-UF0 nonchalantly dropped a Grenade Launcher on the ground 837 | -10/Mines | Core integrity fell below 50% 842 | -10/Mines | Met a Derelict shopkeep closing up shop 850 | -10/Mines | Core integrity fell below 20% 860 | -10/Mines | Destroyed by YI-UF0 with YI-UF0's Doublenader Last Messages --------------- 00842_ ZA-D39(g): "Sorry, the Unaware have moved into these parts and I'm closing up shop. No more sales from me!" 00843_ SHOP.Sys disabled. 00845_ YI-UF0 mumbles something. 00845_ Lgt. Treads destroyed. 00845_ Med. Laser destroyed. 00845_ Lgt. Nuclear Core destroyed. 00846_ ALERT: Derelict activity detected in mines. Dispatching investigation squad. 00848_ System corrupted: Component data lost. 00848_ ZA-D39(g): "Take whatever you can and run for it!" 00849_ Machine disabled. 00850_ Acquired Hvy. Flail. 00851_ U-05 Engineer builds a Wall. 00852_ The unstable cave ceiling collapses. 00855_ ZA-D39(g) destroyed. 00857_ Backup Plating I destroyed. 00857_ U-05 Engineer lays Concrete. Map ----- +----------------------------------------------------+ | ?????????????????????????????????????????????????# | | ????????????????????????????????????#???#????????# | | ????????????????????????????????????????????????## | | ????????????????????????????????????????????????# | | ????????????????????????????????????????#?#????## | | ?????????????????????????????????????????????### | | ???????????????????????????????????#?????##### | | ???????????????????????????????????????### | | ????????????????????????????????? ??????# | | ???????????????????????????????????#????# | | ?????????????????????????????????????#??## | | ??????????????????????????????????####?### | | ???????????????????????????????#### ##?# ## | | ??????????????????????????????## #?# #### | | ??????????????????????????????# #?## ###?### | | ???????????????????#??????????# #?## #?????# | | ?????????????????????????????## ! ?#?# #?????? | | ??????????????????????????????## % ###?# #???#?? | | ???????????????????????????????# ### ####### | | ???????????????????????????????# | | ???????????????????????????#?#?# ########### | | ?????????????????????????#?????# ####????#???# | | ???????????????????????????#???# #####??####?? | | ???????????????????????????#### #????#??? | | ????????????????????????#### ### #??????## | | ????????????????????????#@ g # ##???#??? | | ????????????????????????#! ## ##??????? | | ????????????????????????# ##?????? | | ????????????????????????# ##????? | | ????????????????????????# "" #?????? | | ????????????????????????# # #????? | | ??????????????????????? ## #???? | | ????????????????? #? #??? | | ??????????????? ####### #??? | | ??????????????? #??????# ##??? | | ???????????????? #?#?????####### | | ???????????????? ### # ## ###???????## | | ????????????????????## ### ####??????#???# ## # | | ?????????????????????### ??# #????????#???????# # | | ???????????????????????# ?? #????#???????????# # | | ???????????????????????# ?###?????????????????# # | | ???????????????????????? ?????????????????????# # | | ??????????????????????????????????????????????## | | ????????????????????????????????#????????????## | | ?????????????????????????????????????????????# | | ?????????????????????????????????????????????# | | ?????????????????????????????????? ??????????## | | ??????????????????????????????????????????????### | | ????????????????????????????????????????????????## | | ?????????????????????????????????????????????????? | +----------------------------------------------------+ Best States ------------- Heat Dissipation 25 Energy Generation 14 Energy Capacity 160 Matter Stores 300 Matter Capacity 300 Sight Range 16 Terrain Scan Range 16 Terrain Scan Density 10 Armor Coverage 80 Evasion (%) 40 Recoil Reduction 2 Item Schematics ----------------- None Robot Schematics ------------------ None Fabricated ------------ Nothing Alien Tech Used ----------------- None Achievements -------------- None Challenges ------------ None Game ------ Seed RocketActuatorExtractor Manual? 0 Play Time 00:08:54 Cumulative 51.2 hours Start 2024.07.24 @ 11:28:42 End 2024.07.24 @ 11:35:59 Sessions 1 Manual Loads 0 Difficulty Rogue Special Mode None Game No. 58 Rogue 13 Adventurer 44 Explorer 1 Win Type - Total 2 Types 1/0/1/0/0/0/0/0/0 Lore% 17 Gallery% 49 Achievement% 34 Wizard Run 0 Options --------- Layout 1 ASCII 0 Keyboard 1 Movement Arrows Keybinds 0 Fullscreen 1 Font 24/Smallcaps Map View 50x35 Zoom Use 0% Tactical HUD 1 Map Filters NONE Filters NONE Steam 1 RUN: 38f81800-7611-4d20-992d-a805b97084e1